Cogmind - Beta 14 @@@ ROGUE MODE // 2025.04.27 @ 20:45:42 Player: GiggleBox Result: Destroyed by H-55 Commando with Assault Rifle Performance ------------- Evolutions (2) 1000 Regions Visited (5) 1000 Robots Destroyed (7) 35 Value Destroyed (44) 44 Prototype IDs (6) 120 Alien Tech Used (0) 0 Bonus (505) 505 TOTAL SCORE: 2704 Bonus ------- Pacifist 470 Follower Combat Kills 35 Cogmind --------- Core Integrity 0/550 Matter 300/300 Energy 100/100 System Corruption 0% Temperature Cool (0) Movement Core (200) Ox3 Location -8/Storage Parts ------- > --- POWER (1) -------- (None) > --- PROPULSION (5) --- (None) > --- UTILITY (3) ------ Medium Storage Unit Improved Signal Interpreter > --- WEAPON (2) ------- (None) > --- INVENTORY (10) --- Light Nuclear Core ECM Suite EM Pulse Gun Medium Laser Advanced Beam Rifle Advanced EMP Blaster Grenade Launcher Improved Datajack Makeshift Hammer Peak State ------------ > --- POWER ------------ Heavy Ion Engine > --- PROPULSION ------- Aerolev Unit Aerolev Unit Flight Unit Flight Unit Cesium-ion Thruster > --- UTILITY ---------- Medium Storage Unit Improved Sensor Array Improved Signal Interpreter > --- WEAPON ----------- Hammer > --- INVENTORY -------- Small Storage Unit ECM Suite Shield Generator EM Pulse Gun Medium Laser Advanced Beam Rifle Advanced EMP Blaster Grenade Launcher Improved Datajack Makeshift Hammer [Rating: 26] Favorites ----------- Power Light Ion Engine Engine Light Ion Engine Power Core Light Nuclear Core Propulsion Flight Unit Leg Aluminum Leg Wheel Armored Wheel Hover Unit Aerolev Unit Flight Unit Flight Unit Utility Small Storage Unit Device Improved Sensor Array Storage Small Storage Unit Processor Improved Signal Interpreter Weapon Hammer Energy Gun EM Pulse Gun Ballistic Gun Improved Assault Rifle Launcher Advanced EMP Blaster Impact Weapon Hammer Build | -11 -10 -9 -9 -8 -8 ------- Run | Yrd Mat Mat Min Mat Sto Slots Evolved 4 | . . 2 . 2 . Power . | . . . . . . Propulsion 3 | . . 1 . 2 . Utility 1 | . . 1 . . . Weapon . | . . . . . . Parts Attached 31 | 1 4 1 4 7 14 Power 7 | . . . 1 2 4 Engine 6 | . . . 1 2 3 Core 1 | . . . . . 1 Reactor . | . . . . . . Propulsion 11 | . 3 1 1 1 5 Treads . | . . . . . . Leg . | . . . . . . Wheel 1 | . . . . . 1 Hover 2 | . . . . . 2 Flight 8 | . 3 1 1 1 2 Utility 7 | . . . 1 3 3 Device 5 | . . . 1 2 2 Storage 1 | . . . . . 1 Processor 1 | . . . . 1 . Hackware . | . . . . . . Protection . | . . . . . . Artifact . | . . . . . . Weapon 6 | 1 1 . 1 1 2 Energy Gun 2 | 1 . . . . 1 Energy Cannon . | . . . . . . Ballistic Gun 1 | . . . . 1 . Ballistic Cannon . | . . . . . . Launcher 1 | . . . . . 1 Special Weapon . | . . . . . . Impact Weapon 2 | . 1 . 1 . . Slashing Weapon . | . . . . . . Piercing Weapon . | . . . . . . Special Melee Weapon . | . . . . . . Unidentified Prototypes 6 | . . . . 2 4 Parts Lost 11 | . 1 1 . 3 6 Power 1 | . . . . 1 . Propulsion 6 | . 1 1 . 1 3 Utility 3 | . . . . 1 2 Weapon 1 | . . . . . 1 Highest Loss Streak 5 | . 1 1 . 2 5 To Critical Strikes . | . . . . . . Average Slot Usage (%) 65 | . 63 55 73 66 63 Engine 5 | . 3 . 7 7 2 Leg 1 | . 5 . . . . Hover 1 | . . . . . 8 Flight 26 | . 22 33 33 26 20 Device 6 | . . . 7 12 5 Storage 10 | . 14 11 11 9 9 Processor 2 | . . . . 1 9 Energy Gun 1 | . 9 . . . . Impact Weapon 9 | . 7 11 14 9 8 Peak Build Rating 26 | 6 6 5 10 16 26 Average Rating 10 | 6 4 5 8 11 16 On Entrance 7 | 6 6 4 4 9 14 Naked Turns . | . . . . . . Heaviest Build 21 | 12 12 7 12 12 21 Greatest Support 20 | 20 20 12 12 13 16 Greatest Overweight (x) 3 | . . . . 1 3 Average Overweight (x) . | . . . . . . Largest Inventory Capacity 10 | 8 8 8 8 8 10 Average Capacity 8 | 8 8 8 8 8 10 Most Carried 10 | 6 8 6 8 8 10 Average Carried 7 | 6 7 6 6 7 9 Final Capacity 10 | 8 8 8 8 8 10 Final Carried 9 | 6 7 6 7 8 9 Class Distribution -------------------- 90% | Mutant 9% | Sprinter Dominant Class ---------------- Mutant | -10/Materials Mutant | -9/Materials Mutant | -9/Mines Mutant | -8/Materials Mutant | -8/Storage Resources | -11 -10 -9 -9 -8 -8 ----------- Run | Yrd Mat Mat Min Mat Sto Matter Collected 460 | 200 . . 90 10 160 Remotely . | . . . . . . Salvage Created 253 | . . . . 57 196 Parts 8 | . . . . 1 7 Haulers Intercepted 3 | . . . . 1 2 Recyclers Shooed . | . . . . . . Parts Field Recycled . | . . . . . . Retrieved Matter . | . . . . . . Parts Self-Destructed . | . . . . . . Prevented . | . . . . . . Kills | -11 -10 -9 -9 -8 -8 ------- Run | Yrd Mat Mat Min Mat Sto Combat Hostiles Destroyed 1 | . . . . 1 . Classes Destroyed 4 | . . . . 2 2 Worker 2 | . . . . . 2 Hauler 3 | . . . . 1 2 Recycler 1 | . . . . . 1 Swarmer 1 | . . . . 1 . Best Kill Streak 3 | . . . . 1 3 Combat Bots Only 1 | . . . . 1 . Max Kills in Single Turn 1 | . . . . 1 1 Gunslinging . | . . . . . . Exploded . | . . . . . . Melee . | . . . . . . Uniques/NPCs Destroyed . | . . . . . . Combat | -11 -10 -9 -9 -8 -8 -------- Run | Yrd Mat Mat Min Mat Sto Hostile Shots Fired 144 | . 6 8 4 48 78 Missed 52 | . 2 1 4 20 25 Damage Taken 1175 | . 45 89 . 283 758 Core 599 | . 10 38 . 88 463 Absorbed by Shields 20 | . . . . . 20 Core Remaining (%) 95 | 100 96 . 90 . . Volleys Fired . | . . . . . . Largest . | . . . . . . Hottest . | . . . . . . Shots Fired . | . . . . . . Gun . | . . . . . . Cannon . | . . . . . . Launcher . | . . . . . . Special . | . . . . . . Kinetic . | . . . . . . Thermal . | . . . . . . Explosive . | . . . . . . Electromagnetic . | . . . . . . Robot Hit Streak . | . . . . . . Robot Miss Streak . | . . . . . . Penetration Max . | . . . . . . Secondary Targets . | . . . . . . Shots Hit Robots 17 | . 3 . . 2 12 Core Hits 2 | . . . . . 2 Critical Kills . | . . . . . . Critical Parts Destroyed 3 | . 1 . . . 2 Critical Strikes 4 | . 1 . . . 3 Smash 4 | . 1 . . . 3 Melee Attacks 34 | . 3 5 . 9 17 Impact 34 | . 3 5 . 9 17 Slashing . | . . . . . . Piercing . | . . . . . . Sneak Attacks 7 | . . . . 1 6 Combat Hostiles . | . . . . . . Follow-up Attacks . | . . . . . . Damage Inflicted 673 | . 78 . . 111 484 Guns . | . . . . . . Cannons . | . . . . . . Explosions . | . . . . . . Melee 673 | . 78 . . 111 484 Ramming . | . . . . . . Kinetic . | . . . . . . Thermal . | . . . . . . Explosive . | . . . . . . Electromagnetic . | . . . . . . Impact 673 | . 78 . . 111 484 Slashing . | . . . . . . Piercing . | . . . . . . Highest Corruption . | . . . . . . Average Corruption . | . . . . . . Corruption Purged . | . . . . . . Corruption Blocked . | . . . . . . Overload Shots . | . . . . . . Overflow Damage 315 | . 26 . . 69 220 Projectiles . | . . . . . . Explosions . | . . . . . . Melee 315 | . 26 . . 69 220 Knockbacks 4 | . 1 . . . 3 Impact 4 | . 1 . . . 3 Kinetic . | . . . . . . Secondary . | . . . . . . Self-Inflicted Damage . | . . . . . . Shots . | . . . . . . Rammed . | . . . . . . Targets Rammed . | . . . . . . Kicked . | . . . . . . Crushed . | . . . . . . Highest Temperature 13 | . . . . 13 . Average Temperature 6 | . . . . 6 . Received Heat Transfer 402 | . 24 24 . 117 237 Siege Activations . | . . . . . . Robots Corrupted 4 | . . . . 1 3 Combat Hostiles 1 | . . . . 1 . Parts Fried 6 | . . . . 2 4 Impact Corruptions 10 | . 1 . . 2 7 Robots Melted . | . . . . . . Combat Hostiles . | . . . . . . Parts Melted . | . . . . . . Heat Transferred . | . . . . . . Parts Sabotaged . | . . . . . . Parts Stolen . | . . . . . . Parts Stripped . | . . . . . . Power Chain Reactions . | . . . . . . Alert | -11 -10 -9 -9 -8 -8 ------- Run | Yrd Mat Mat Min Mat Sto Peak Influence 306 | . 185 169 153 306 217 Initial 128 | . . 78 73 59 128 Average 124 | . 50 110 136 137 165 Maximum Alert Level 1 | . . . . 1 1 Low Security (%) 91 | 100 100 100 100 76 88 Level 1 8 | . . . . 23 11 Level 2 . | . . . . . . Level 3 . | . . . . . . Level 4 . | . . . . . . Level 5 . | . . . . . . High Security . | . . . . . . Max Security . | . . . . . . Squads Dispatched 2 | . 2 . . . . Investigation 2 | . 2 . . . . Extermination . | . . . . . . Reinforcement . | . . . . . . Assault . | . . . . . . Garrison . | . . . . . . Intercept . | . . . . . . Searches Triggered . | . . . . . . Construction Impeded . | . . . . . . Haulers Reinforced . | . . . . . . Active Scanning Responses . | . . . . . . Cargo Convoy Interrupts . | . . . . . . Stealth | -11 -10 -9 -9 -8 -8 --------- Run | Yrd Mat Mat Min Mat Sto Distress Signals 3 | . 2 . . 1 . Communications Jammed . | . . . . . . Distress Signals . | . . . . . . Times Spotted 57 | . 10 10 10 20 7 Peak Tracking Total 13 | . 5 10 9 13 5 Tactical Retreats 11 | . 4 2 2 3 . Traps | -11 -10 -9 -9 -8 -8 ------- Run | Yrd Mat Mat Min Mat Sto Traps Triggered 2 | . 2 . . . . Indirectly . | . . . . . . Trap Hack Attempts . | . . . . . . Triggered . | . . . . . . Disarmed . | . . . . . . Reprogrammed . | . . . . . . Reused 2 | . . . 2 . . Traps Extracted . | . . . . . . Installed 3 | . . . 2 1 . Triggered 2 | . . . 2 . . Most Traps Carried 3 | . . . 3 1 . Machines | -11 -10 -9 -9 -8 -8 ---------- Run | Yrd Mat Mat Min Mat Sto Machines Disabled 2 | . . . . . 2 Max in Single Turn 1 | . . . . . 1 Machines Repaired . | . . . . . . Machines Dismantled . | . . . . . . Machines Sabotaged . | . . . . . . Overloaded Fab Kills . | . . . . . . Hacking | -11 -10 -9 -9 -8 -8 --------- Run | Yrd Mat Mat Min Mat Sto Machines Accessed 15 | . 6 3 . 6 . Terminals 15 | . 6 3 . 6 . Fabricators . | . . . . . . Repair Stations . | . . . . . . Recycling Units . | . . . . . . Scanalyzers . | . . . . . . Garrison Access . | . . . . . . Total Hacks 58 | . 19 18 . 21 . Successful 32 | . 10 10 . 12 . Failed 26 | . 9 8 . 9 . Catastrophic 3 | . 2 . . 1 . Database Lockouts . | . . . . . . Manual 49 | . 17 14 . 18 . Terminals 58 | . 19 18 . 21 . Fabricators . | . . . . . . Repair Stations . | . . . . . . Recycling Units . | . . . . . . Scanalyzers . | . . . . . . Garrison Access . | . . . . . . Terminal Hacks 7 | . 1 3 . 3 . Robot Analysis 1 | . . 1 . . . Branch Access Points 1 | . . . . 1 . Terminal Index 1 | . . . . 1 . Locate Traps 2 | . 1 . . 1 . Zone Layout 2 | . . 2 . . . Fabricator Hacks . | . . . . . . Repair Station Hacks . | . . . . . . Recycling Unit Hacks . | . . . . . . Scanalyzer . | . . . . . . Garrison Access Hacks . | . . . . . . Unauthorized Hacks 25 | . 9 7 . 9 . Terminals 25 | . 9 7 . 9 . Assimilate 1 | . . . . 1 . Botnet 9 | . 3 3 . 3 . Operators 2 | . 1 1 . . . Skim 13 | . 5 3 . 5 . Fabricators . | . . . . . . Repair Stations . | . . . . . . Recycling Units . | . . . . . . Scanalyzers . | . . . . . . Garrison Access . | . . . . . . Data Cores Recovered . | . . . . . . Used . | . . . . . . Hacking Detections 15 | . 6 3 . 6 . Full Trace Events . | . . . . . . Feedback Events . | . . . . . . Feedback Blocked . | . . . . . . Robot Schematics Acquired . | . . . . . . Robots Built . | . . . . . . Authchips . | . . . . . . Time . | . . . . . . Total Robot Build Rating . | . . . . . . Part Schematics Acquired . | . . . . . . Parts Built . | . . . . . . Authchips . | . . . . . . Time . | . . . . . . Total Part Build Rating . | . . . . . . Parts Repaired . | . . . . . . Time . | . . . . . . Parts Recycled . | . . . . . . Recycled Matter . | . . . . . . Retrieved Matter . | . . . . . . Retrieved Components . | . . . . . . Parts Scanalyzed . | . . . . . . Part Schematics Acquired . | . . . . . . Parts Damaged . | . . . . . . Bothacking | -11 -10 -9 -9 -8 -8 ------------ Run | Yrd Mat Mat Min Mat Sto Used RIF Installer . | . . . . . . Robots Hacked . | . . . . . . Non-combat . | . . . . . . Combat . | . . . . . . Robot Hacks Applied . | . . . . . . Relay Couplers Released . | . . . . . . Fabnet Peak Effective % . | . . . . . . Robots Rewired . | . . . . . . Allies Hacked . | . . . . . . Hacks Repelled . | . . . . . . Allies | -11 -10 -9 -9 -8 -8 -------- Run | Yrd Mat Mat Min Mat Sto Total Allies 2 | . . . 1 1 . Largest Group 1 | . . . 1 1 . Highest-Rated Group 31 | . . . 31 31 . Highest-Rated Ally 31 | . . . 31 31 . Total Orders . | . . . . . . Ally Attacks 12 | . . . . 12 . Total Damage 105 | . . . . 105 . Kills 1 | . . . . 1 . Allies Corrupted . | . . . . . . Allies Melted . | . . . . . . Intel | -11 -10 -9 -9 -8 -8 ------- Run | Yrd Mat Mat Min Mat Sto Robot Analysis Total 1 | . . 1 . . . Derelict Logs Recovered 1 | . . . 1 . . Drone Launches . | . . . . . . Drone Recoveries . | . . . . . . Exploration | -11 -10 -9 -9 -8 -8 ------------- Run | Yrd Mat Mat Min Mat Sto Turns Passed 924 | 4 168 81 220 249 202 Spaces Moved 1848 | 3 320 194 607 585 139 Core 14 | . . . . . 14 Treads . | . . . . . . Legs 29 | 3 26 . . . . Wheels . | . . . . . . Hover 6 | . . . . . 6 Flight 1799 | . 294 194 607 585 119 Fastest Speed 32 | 120 37 34 34 32 32 Average Speed 38 | 120 43 34 34 35 62 Slowest Speed 200 | 120 120 37 34 117 200 Overloaded Moves . | . . . . . . Propulsion Burnouts . | . . . . . . Robots Hopped 14 | . . 4 2 8 . Cave-ins Triggered . | . . . . . . Exploration Rate (%) 46 | 2 70 24 97 55 28 Regions Visited 5 Branch Regions 2 Pre-discovered Areas 1 | . . . . 1 . Known Exits Taken 1 | . . . . 1 . Unknown Exits Taken 4 | 1 1 1 1 . . Scrap Searched 1 | . . . 1 . . Spaces Dug 4 | . . 2 . 2 . Terrain Destroyed 4 | . . 2 . 2 . Melee 4 | . . 2 . 2 . Projectile . | . . . . . . AOE . | . . . . . . Terrain Rammed . | . . . . . . Walls Destroyed . | . . . . . . Machines Disabled . | . . . . . . Actions | -11 -10 -9 -9 -8 -8 --------- Run | Yrd Mat Mat Min Mat Sto Total 1989 | 3 346 195 618 601 226 Wait 40 | . . . . 1 39 Move 1816 | 2 319 185 602 569 139 Hop 13 | . . 4 2 7 . Pick Up 17 | . 9 . 5 2 1 Fast Attach 17 | . . . 1 5 11 Attach 6 | . 1 1 3 . 1 Detach 10 | . 2 . 1 2 5 Swap 8 | 1 3 . . 2 2 Drop 25 | . 9 . 2 3 11 Fire . | . . . . . . Melee 34 | . 3 5 . 9 17 Ram . | . . . . . . Kick . | . . . . . . Crush . | . . . . . . Escape Stasis . | . . . . . . Rewire . | . . . . . . Trap 3 | . . . 2 1 . Miscellaneous . | . . . . . . Route ------- -11/Scrapyard -10/Materials (discovered 4 exits: *Mat x2 / [*Min x2]) -9/Materials -9/Mines (discovered 2 exits: *Mat x2) -8/Materials (discovered 3 exits: *Fac x2 / *Sto) -8/Storage History --------- Turn | Location | Event 3 | -11/Scrapyard | Discovered new exit (range 1) 5 | -11/Scrapyard | Entered Materials 5 | -10/Materials | Discovered new exit (range 14) 72 | -10/Materials | Discovered new exit (range 16) 115 | -10/Materials | Discovered new exit (range 16) 151 | -10/Materials | Discovered new exit (range 16) 173 | -10/Materials | Entered another Materials area 173 | -9/Materials | Evolved 2 slots: Propulsion x1, Utility x1 237 | -9/Materials | Discovered new exit (range 8) 254 | -9/Materials | Entered Mines 258 | -9/Mines | Discovered new exit (range 10) 264 | -9/Mines | A weapon hastily lodged in a ceiling crevice suddenly fell to the ground 278 | -9/Mines | Found a hidden stash of uninstalled traps 315 | -9/Mines | Build established: Mutant 322 | -9/Mines | Learned location of 1 exit from Materials 346 | -9/Mines | Assembled infested the area 457 | -9/Mines | Discovered new exit (range 8) 460 | -9/Mines | Received a Mining Laser from a helpful Derelict 474 | -9/Mines | Entered Materials 474 | -8/Materials | Accompanied by 1 ally 474 | -8/Materials | Evolved 2 slots: Propulsion x2 475 | -8/Materials | Identified exit to Factory 654 | -8/Materials | Discovered exit to Factory (range 10) 701 | -8/Materials | Identified exit to Storage 710 | -8/Materials | Learned location of Lower Caves (-7) 723 | -8/Materials | Entered Storage 885 | -8/Storage | Core integrity fell below 50% 914 | -8/Storage | Core integrity fell below 20% 925 | -8/Storage | Destroyed by H-55 Commando with Assault Rifle Last Messages --------------- 00893_ Sneak attack on R-06 Scavenger. 00893_ R-06 Scavenger suffers critical hit (Smash). 00893_ Destroyed Com. Wheel. 00893_ R-06 Scavenger system corrupted by crushing effect. 00893_ R-06 Scavenger knocked back. 00893_ Slug penetrates Wall. 00894_ R-06 Scavenger system terminally corrupted. 00894_ Sml. Storage Unit fried. 00898_ K-01 Serf collects debris. 00902_ Sneak attack on K-01 Serf. 00902_ Destroyed Lgt. Ion Engine. 00902_ K-01 Serf system corrupted by crushing effect. 00910_ Hammer destroyed. 00916_ Penetrated by Slug. 00916_ Critical hit (Burn: +37). 00918_ K-01 Serf collects debris. 00919_ Penetrated by Slug. 00919_ K-01 Serf destroyed. 00922_ Penetrated by Slug. 00925_ Slug penetrates Wall. Map ----- +----------------------------------------------------+ | | | | | | | | | | | | | | | | | | | ????????????????????????????????????????????????? | | ????????????????????????????????????????????????? | | ?????????????????????#????#####?????????????????? | | ??????????????????? ????" #?????????????????? | | ???????????????????? ??T" #?????????????????? | | ???????????????????? ??? #?????????????????? | | ???????????????????? ? #?????????????????? | | ????????????????????? """ #?????????????????? | | ?????????????????????# """ #?????????????????? | | ?????????????????????# """ #?????????????????? | | ?????????????????????# "" #???###???????????? | | ?????????????????????# " #???# ???????????? | | ?????????????????????# =%! #???# """?????????? | | ?????????????????????# = #???# "[]?????????? | | ?????????????????????# #???# "!!"""??????? | | ?????????????????????# !! ##### """=="??#???? | | ?????????????????????# !@ Y=%""=!"? #???? | | ?????????????????????# ## ["="" #???? | | ?????????????????????#a ## %* #???? | | ?????????????????????# ######*#####???? | | ?????????????????????# h#???# #???? | | ?????????????????????# ##### #???? | | ?????????????????????# Y #???? | | ???????????????????? a ############# #???? | | ???????????????????### ????????????# # #??? | | ?????????????????????# ????????????# # #??? | | ?????????????????????# ????????????# # #??? | | ?????????????????????# ????????????# *!#?+##??? | | ????????????????????? ????????????#=!|#??????? | | ????????????????????? ????????????#!| #??????? | | ????????????????????? Y ????????????# !|#??????? | | ??????????????????????? ?????????????# =#??????? | | ?????????????????????????????????????# #??????? | | ?????????????????????????????????????# ###????? | | ?????????????????????????????????????# # ????? | | ?????????????????????????????????????# # ""???? | | ?????????????????????????????????????# # """ ? | | ?????????????????????????????????????# # """ # | | ?????????????????????????????????????# # # | | ???????????????????????????########### # """ =# | | ???????????????????????????# # """ # | +----------------------------------------------------+ Best States ------------- Heat Dissipation 31 Energy Generation 14 Energy Capacity 280 Matter Stores 300 Matter Capacity 300 Sight Range 16 Robot Scan Range 15 Terrain Scan Range 16 Terrain Scan Density 10 Evasion (%) 63 Item Schematics ----------------- None Robot Schematics ------------------ None Fabricated ------------ Nothing Alien Tech Used ----------------- None Achievements -------------- None Challenges ------------ None Game ------ Seed StorageInertialStreamer Manual? 0 Play Time 00:25:50 Cumulative 57.1 hours Start 2025.04.27 @ 20:21:18 End 2025.04.27 @ 20:45:42 Sessions 1 Manual Loads 0 Difficulty Rogue Special Mode None Game No. 67 Rogue 67 Adventurer 0 Explorer 0 Win Type - Total 0 Types 0/0/0/0/0/0/0/0/0 Lore% 16 Gallery% 36 Achievement% 31 Wizard Run 0 Options --------- Layout 0 ASCII 0 Keyboard 1 Movement Numpad Keybinds 0 Fullscreen 1 Font 24/Terminus Map View 76x50 Zoom Use 0% Tactical HUD 1 Map Filters NONE Filters NONE Steam 1 RUN: 529927fe-2df2-41c9-805c-ffc9952f23b1